Cogmind - Beta 16 @@@ ROGUE MODE // 2025.12.24 @ 12:17:20 Player: Desaphets Result: Destroyed by HS-RN3(R) with Subdweller Laser Performance ------------- Evolutions (0) 0 Regions Visited (2) 400 Robots Destroyed (21) 105 Value Destroyed (563) 563 Prototype IDs (0) 0 Alien Tech Used (0) 0 Bonus (0) 0 TOTAL SCORE: 1068 Bonus ------- None Cogmind --------- Core Integrity 0/250 Matter 257/300 Energy 71/100 System Corruption 1% Temperature Cool (6) Movement Core (250) Ox4 Location -10/Subcaves Parts ------- > --- POWER (1) -------- (None) > --- PROPULSION (2) --- (None) > --- UTILITY (2) ------ Medium Storage Unit Visual Processing Unit > --- WEAPON (2) ------- Light Cannon > --- INVENTORY (10) --- Ion Engine Ion Engine Light Treads Light Treads Improved Heat Sink Improved Terrain Scanner Core Shielding Light Armor Plating Mining Claw Peak State ------------ > --- POWER ------------ Ion Engine > --- PROPULSION ------- Aluminum Leg Aluminum Leg > --- UTILITY ---------- Improved Heat Sink Small Storage Unit > --- WEAPON ----------- Assault Rifle Light Cannon > --- INVENTORY -------- Ion Engine Light Ion Engine Light Treads Light Treads Compact Wheel Compact Wheel EM Pulse Gun Light Assault Rifle [Rating: 9] Favorites ----------- Power Ion Engine Engine Ion Engine Propulsion Aluminum Leg Treads Light Treads Leg Aluminum Leg Utility Small Storage Unit Device Structural Scanner Storage Small Storage Unit Processor Visual Processing Unit Weapon Assault Rifle Energy Gun EM Pulse Gun Ballistic Gun Assault Rifle Ballistic Cannon Light Cannon Slashing Weapon Mining Claw Build | -11 -10 -10 ------- Run | Yrd Mat Sub Slots Evolved . | . . . Power . | . . . Propulsion . | . . . Utility . | . . . Weapon . | . . . Parts Attached 18 | 7 10 1 Power 2 | 1 1 . Engine 2 | 1 1 . Core . | . . . Reactor . | . . . Propulsion 5 | 3 2 . Treads 1 | 1 . . Leg 4 | 2 2 . Wheel . | . . . Hover . | . . . Flight . | . . . Utility 5 | 1 4 . Device 2 | . 2 . Storage 2 | 1 1 . Processor 1 | . 1 . Hackware . | . . . Protection . | . . . Artifact . | . . . Weapon 6 | 2 3 1 Energy Gun 1 | . 1 . Energy Cannon . | . . . Ballistic Gun 3 | 2 1 . Ballistic Cannon 1 | . 1 . Launcher . | . . . Special Weapon . | . . . Impact Weapon . | . . . Slashing Weapon 1 | . . 1 Piercing Weapon . | . . . Special Melee Weapon . | . . . Unidentified Prototypes . | . . . Parts Lost 5 | . . 5 Power 1 | . . 1 Propulsion 2 | . . 2 Utility . | . . . Weapon 2 | . . 2 Highest Loss Streak 4 | . . 4 To Critical Strikes . | . . . Average Backups 8 | 5 8 9 Power 1 | . 2 2 Propulsion 2 | 2 2 2 Utility 2 | . 1 4 Weapon 1 | 1 1 1 Tool/Special . | . . . Unused Backups 11 | . 5 6 Power 4 | . 2 2 Propulsion 3 | . 2 1 Utility 3 | . . 3 Weapon 1 | . 1 . Tool/Special . | . . . Average Slot Usage (%) 95 | . 96 93 Engine 13 | . 14 9 Leg 27 | . 28 26 Device 4 | . 5 . Storage 14 | . 14 14 Processor 6 | . 5 14 Energy Gun 7 | . 8 5 Ballistic Gun 14 | . 15 13 Ballistic Cannon 3 | . 4 . Slashing Weapon 1 | . . 8 Peak Build Rating 9 | 6 9 9 Average Rating 7 | 3 8 8 On Entrance 5 | . 6 9 Avg Prop Armor Cover (%) . | . . . Naked Turns . | . . . Heaviest Build 20 | 11 20 19 Greatest Support 20 | 20 20 20 Greatest Overweight (x) 1 | 1 . . Average Overweight (x) . | . . . Largest Inventory Capacity 10 | 8 10 10 Average Capacity 8 | 7 8 10 Most Carried 10 | 8 10 10 Average Carried 8 | 5 8 9 Final Capacity 10 | 8 10 10 Final Carried 10 | 7 10 9 Class Distribution -------------------- 58% | Mutant 41% | Scavenger-Mutant Dominant Class ---------------- Mutant | -10/Materials Scavenger-Mutant | -10/Subcaves Resources | -11 -10 -10 ----------- Run | Yrd Mat Sub Matter Collected 687 | 282 399 6 Remotely . | . . . Salvage Created 815 | 93 628 94 Parts 48 | 3 39 6 Haulers Intercepted 1 | . 1 . Recyclers Shooed 2 | . 2 . Parts Field Recycled . | . . . Retrieved Matter . | . . . Parts Self-Destructed . | . . . Prevented . | . . . Parts Restored . | . . . Kills | -11 -10 -10 ------- Run | Yrd Mat Sub Combat Hostiles Destroyed 13 | . 11 2 Guns 6 | . 5 1 Cannons 7 | . 6 1 Classes Destroyed 8 | 1 6 1 Worker 1 | . 1 . Tunneler 1 | . 1 . Hauler 1 | . 1 . Recycler 2 | 1 1 . Operator 1 | . 1 . Watcher 2 | . 2 . Grunt 11 | . 11 . Subdweller 2 | . . 2 Best Kill Streak 5 | 1 5 1 Combat Bots Only 5 | . 5 1 Max Kills in Single Turn 1 | 1 1 1 Gunslinging . | . . . Exploded . | . . . Melee . | . . . Uniques/NPCs Destroyed . | . . . Combat | -11 -10 -10 -------- Run | Yrd Mat Sub Hostile Shots Fired 98 | . 54 44 Missed 27 | . 15 12 Hits 71 | . 39 32 Projectile 71 | . 39 32 Critical Strikes 1 | . . 1 Damage Taken 1169 | . 482 687 Core 267 | . 64 203 Absorbed by Shields . | . . . Regen/Repaired (Parts) 107 | . 107 . Core Remaining (%) 100 | 100 . . Volleys Fired 73 | 3 56 14 Largest 2 | 2 2 2 Hottest 60 | 40 60 60 Shots Fired 134 | 6 112 16 Gun 102 | 6 82 14 Cannon 32 | . 30 2 Launcher . | . . . Special . | . . . Kinetic 111 | 6 91 14 Thermal . | . . . Explosive . | . . . Electromagnetic 23 | . 21 2 Robot Hit Streak 12 | 3 11 12 Robot Miss Streak 5 | 2 5 1 Penetration Max . | . . . Secondary Targets . | . . . Shots Hit Robots 87 | 4 68 15 Core Hits 35 | 2 29 4 Critical Kills . | . . . Critical Parts Destroyed . | . . . Critical Strikes 1 | . 1 . Blast 1 | . 1 . Melee Attacks . | . . . Impact . | . . . Slashing . | . . . Piercing . | . . . Sneak Attacks . | . . . Combat Hostiles . | . . . Follow-up Attacks . | . . . Damage Inflicted 1233 | 39 991 203 Guns 866 | 39 655 172 Cannons 366 | . 335 31 Explosions . | . . . Melee . | . . . Ramming 1 | . 1 . Kinetic 1007 | 39 789 179 Thermal . | . . . Explosive . | . . . Electromagnetic 225 | . 201 24 Impact . | . . . Slashing . | . . . Piercing . | . . . Highest Corruption 1 | . 1 1 Average Corruption 1 | . 1 1 Corruption Purged . | . . . Corruption Blocked . | . . . Effects 1 | . 1 . Matter Fused 1 | . 1 . Overload Shots . | . . . Overflow Damage . | . . . Projectiles . | . . . Explosions . | . . . Melee . | . . . Knockbacks 11 | . 10 1 Impact . | . . . Kinetic 8 | . 7 1 Secondary 3 | . 3 . Self-Inflicted Damage . | . . . Shots . | . . . Rammed . | . . . Targets Rammed 1 | . 1 . Kicked 1 | . 1 . Crushed . | . . . Highest Temperature 72 | . 72 . Average Temperature 28 | . 28 . Received Heat Transfer 357 | . 267 90 Siege Activations . | . . . Martial Activations . | . . . Shielding Activations . | . . . Robots Disrupted . | . . . Combat Hostiles . | . . . Robots Corrupted . | . . . Combat Hostiles . | . . . Parts Fried 1 | . 1 . Impact Corruptions . | . . . Robots Melted . | . . . Combat Hostiles . | . . . Parts Melted . | . . . Heat Transferred . | . . . Parts Sabotaged . | . . . Parts Stolen . | . . . Parts Stripped . | . . . Power Chain Reactions . | . . . Alert | -11 -10 -10 ------- Run | Yrd Mat Sub Maximum Alert Level . | . . . Low Security (%) 100 | 100 100 . Level 1 . | . . . Level 2 . | . . . Level 3 . | . . . Level 4 . | . . . Level 5 . | . . . High Security . | . . . Max Security . | . . . Peak Influence 126 | 5 126 . Initial . | . . . Average 38 | . 41 . Influence Increases 378 | 5 373 . Destroy 0b10 Robot/C 220 | . 220 . Destroy 0b10 Robot/NC 40 | 5 35 . Destroy Leader 66 | . 66 . Successful Hack 36 | . 36 . Destroy Structure 1 | . 1 . Lose Combat Pursuer 15 | . 15 . Influence Decreases 378 | 5 371 2 Entered New Map 2 | . . 2 Time Decay 376 | 5 371 . Squads Dispatched 3 | . 3 . Investigation 2 | . 2 . Extermination . | . . . Reinforcement 1 | . 1 . Assault . | . . . Garrison . | . . . Intercept . | . . . Searches Triggered . | . . . Construction Impeded . | . . . Haulers Reinforced . | . . . Active Scanning Responses . | . . . Cargo Convoy Interrupts . | . . . Stealth | -11 -10 -10 --------- Run | Yrd Mat Sub Distress Signals 2 | . 2 . Communications Jammed . | . . . Distress Signals . | . . . Times Spotted 27 | . 22 5 Peak Tracking Total 4 | . 4 4 Tactical Retreats 1 | . 1 . Traps | -11 -10 -10 ------- Run | Yrd Mat Sub Traps Triggered 1 | . 1 . Indirectly . | . . . Trap Hack Attempts . | . . . Triggered . | . . . Disarmed . | . . . Reprogrammed . | . . . Reused . | . . . Traps Extracted . | . . . Installed . | . . . Triggered . | . . . Machines | -11 -10 -10 ---------- Run | Yrd Mat Sub Machines Disabled . | . . . Max in Single Turn . | . . . Machines Repaired . | . . . Machines Dismantled . | . . . Machines Sabotaged . | . . . Overloaded Fab Kills . | . . . Hacking | -11 -10 -10 --------- Run | Yrd Mat Sub Machines Accessed 1 | . 1 . Terminals . | . . . Fabricators . | . . . Repair Stations 1 | . 1 . Recycling Units . | . . . Scanalyzers . | . . . Garrison Access . | . . . Total Hacks 6 | . 6 . Successful 3 | . 3 . Failed 3 | . 3 . Catastrophic 1 | . 1 . Database Lockouts . | . . . Manual . | . . . Terminals . | . . . Fabricators . | . . . Repair Stations 6 | . 6 . Recycling Units . | . . . Scanalyzers . | . . . Garrison Access . | . . . Terminal Hacks . | . . . Fabricator Hacks . | . . . Repair Station Hacks 3 | . 3 . Scan Component 2 | . 2 . Repair 1 | . 1 . Recycling Unit Hacks . | . . . Scanalyzer . | . . . Garrison Access Hacks . | . . . Unauthorized Hacks . | . . . Terminals . | . . . Fabricators . | . . . Repair Stations . | . . . Recycling Units . | . . . Scanalyzers . | . . . Garrison Access . | . . . Data Cores Recovered 1 | . 1 . Used . | . . . Hacking Detections 1 | . 1 . Full Trace Events 1 | . 1 . Feedback Events 1 | . 1 . Corruption 1 | . 1 . Feedback Blocked . | . . . Robot Schematics Acquired . | . . . Robots Built . | . . . Authchips . | . . . Time . | . . . Total Robot Build Rating . | . . . Part Schematics Acquired . | . . . Parts Built . | . . . Authchips . | . . . Time . | . . . Total Part Build Rating . | . . . Part Studies Acquired . | . . . Parts Repaired 1 | . 1 . Time 13 | . 13 . Parts Recycled . | . . . Recycled Matter . | . . . Retrieved Matter . | . . . Retrieved Components . | . . . Parts Scanalyzed . | . . . Part Schematics Acquired . | . . . Parts Damaged . | . . . Bothacking | -11 -10 -10 ------------ Run | Yrd Mat Sub Used RIF Installer . | . . . Robots Hacked . | . . . Non-combat . | . . . Combat . | . . . Robot Hacks Applied . | . . . Relay Couplers Released . | . . . Fabnet Peak Effective % . | . . . Robots Rewired . | . . . Allies Hacked . | . . . Hacks Repelled . | . . . Allies | -11 -10 -10 -------- Run | Yrd Mat Sub Total Allies . | . . . Largest Group . | . . . Highest-Rated Group . | . . . Highest-Rated Ally . | . . . Total Orders . | . . . Ally Attacks . | . . . Total Damage . | . . . Kills . | . . . Allies Corrupted . | . . . Allies Melted . | . . . Intel | -11 -10 -10 ------- Run | Yrd Mat Sub Active Infowar (turns) 1020 | . 794 226 Optics 741 | . 515 226 Structural 279 | . 279 . Robot Analysis Total . | . . . Derelict Logs Recovered . | . . . Drone Launches . | . . . Drone Recoveries . | . . . Exploration | -11 -10 -10 ------------- Run | Yrd Mat Sub Turns Passed 1650 | 86 1338 226 Spaces Moved 1085 | 53 888 144 Core 23 | 23 . . Treads . | . . . Legs 1062 | 30 888 144 Wheels . | . . . Hover . | . . . Flight . | . . . Fastest Speed 50 | 50 120 120 Average Speed 119 | 108 120 120 Slowest Speed 120 | 120 120 120 Overloaded Moves . | . . . Propulsion Burnouts . | . . . Robots Hopped . | . . . Potential Cave-ins . | . . . Cave-ins Triggered . | . . . Exploration Rate (%) 38 | 6 98 12 Regions Visited 2 Branch Regions 1 Pre-discovered Areas . | . . . Known Exits Taken . | . . . Unknown Exits Taken 2 | 1 1 . Scrap Searched . | . . . Spaces Dug . | . . . Terrain Destroyed . | . . . Melee . | . . . Projectile . | . . . AOE . | . . . Terrain Rammed . | . . . Walls Destroyed . | . . . Machines Disabled . | . . . Actions | -11 -10 -10 --------- Run | Yrd Mat Sub Total 1309 | 75 1053 181 Wait 95 | . 75 20 Move 1083 | 52 887 144 Hop . | . . . Pick Up 24 | 13 11 . Fast Attach 2 | . 2 . Attach 7 | 6 . 1 Detach . | . . . Swap 11 | 1 8 2 Drop 13 | . 13 . Fire 73 | 3 56 14 Melee . | . . . Ram . | . . . Kick 1 | . 1 . Crush . | . . . Escape Stasis . | . . . Rewire . | . . . Trap . | . . . Miscellaneous . | . . . Route ------- -11/Scrapyard -10/Materials (discovered 5 exits: [*Mat x3] / [*Min] / [*Sub]) -10/Subcaves (discovered 1 exit: [*Mat]) History --------- Turn | Location | Event 6 | -11/Scrapyard | Discovered new exit (range 16) 87 | -11/Scrapyard | Entered Materials 311 | -10/Materials | Build established: Mutant 316 | -10/Materials | Discovered new exit (range 6) 475 | -10/Materials | Discovered new exit (range 10) 817 | -10/Materials | Discovered new exit (range 6) 861 | -10/Materials | Discovered new exit (range 10) 1051 | -10/Materials | Discovered new exit (range 6) 1124 | -10/Materials | Repaired Lgt. Cannon 1195 | -10/Materials | Build established: Scavenger-Mutant 1425 | -10/Materials | Entered Subcaves 1446 | -10/Subcaves | Discovered new exit (range 7) 1605 | -10/Subcaves | Core integrity fell below 50% 1643 | -10/Subcaves | Core integrity fell below 20% 1651 | -10/Subcaves | Destroyed by HS-RN3(R) with Subdweller Laser Last Messages --------------- System corrupted: Matter fused (-6). G-34 Mercenary IFF system glitched. G-34 Mercenary destroyed. Acquired 21 matter. K-01 Serf cleans the Purification Channel. Dropped Broken Grenade Launcher. Acquired Mining Claw. LOCATION=UNKNOWN AMBIENT_HEAT=-10 GOAL=ESCAPE EXIT=FOUND KC-PPX(R) destroyed. Acquired 6 matter. Ion Engine destroyed. Assault Rifle destroyed. Aluminum Leg destroyed. EM Pulse Gun destroyed. XJ-ZER(R) knocked back. Aluminum Leg destroyed. XJ-ZER(R) destroyed. Map ----- +----------------------------------------------------+ | ????????????????????????????????????????????????? | | ????????????????????????????????????????????????? | | ????????????????????????????????????????????????? | | ????????????????????????????????????????????????? | | ????????????????????????????????????????????#???? | | ??????????????????????????????????????????? #???? | | ???????????????????????????????????????#### ????? | | ???????????????????????????????????????# ?????? | | ??????????????????????????????????????### ####??? | | ??????????????????????????????????????# " "# #### | | ??????????????????????????????######?## ## | | ??????????????????????????????# #?# ## | | ???????????????????????????????# ### # | | ???????????????????????????????# ##[ ## | | ???????????????????????????????# *%! ######? | | ????????????????##???????????### &= #?????? | | ???????????????## #??????????# ## < #?????? | | ???????????????# #?????????# #### #?????? | | ??????????????## ????###??## ## #?????? | | ??????????????# ????# ###?## ## #?????? | | ???????????????# ##?## #?# ##?????? | | ??????????????## ### #?#### ## #?????? | | ??????????????# #????## # #?????? | | ??????????????# ##?????# #?????? | | ??????????????# #???##### # ###?????? | | ??????????????## R @ #??## ###??????? | | ???????????????# R R ####??# ##?????? | | ??????????????## [%!##????## #?????? | | ??????????????# & ##????# #?????? | | ??????????????# ###### " #?????? | | ??????????????# ## "" #?????? | | ??????????????# ### "" #?????? | | ??????????????## ?## "" #?????? | | ???????????????####?# "" " ###?????? | | ????????????????????# ### "" "" ##???????? | | ????????????????????# ##?# """"" #????????? | | ????????????????????# ## #### """ "" ????????? | | ????????????????????# ### ### """ " " ???????? | | ????????????????????# # ####"" "" " ??????? | | ????????????????????# ## #???"""""" #?????? | | ????????????????????#### ## ####""""""" #?????? | | ?????????????????????#### """"""" ?????? | | ???????????????####?## ?## #????????????? | | ??????????????## ## ### ##????????????? | | ??????????????# #?????????????? | | ??????????????# ## """" ?????????? | | ??????????????# #?# #????????? | | ??????????????# #??# ?????? | | ??????????????## ##?? ???? | | ???????????????## ## ##??## ????? | +----------------------------------------------------+ Best States ------------- Heat Dissipation 39 Energy Generation 10 Energy Capacity 250 Matter Stores 300 Matter Capacity 300 Sight Range 18 Terrain Scan Density 10 Evasion (%) 55 Item Schematics ----------------- None Robot Schematics ------------------ None Fabricated ------------ Nothing Repaired ---------- Lgt. Cannon | 10% | -10/Materials Studied --------- None Alien Tech Used ----------------- None Achievements -------------- None Challenges ------------ None Game ------ Seed ReactiveChromionTurbovents Manual? 0 Play Time 00:16:42 Cumulative 8.7 hours Start 2025.12.24 @ 12:02:11 End 2025.12.24 @ 12:17:20 Sessions 1 Manual Loads 0 Difficulty Rogue Special Mode None Game No. 18 Rogue 18 Adventurer 0 Explorer 0 Win Type - Total 0 Types 0/0/0/0/0/0/0/0/0/0 Lore% 6 Gallery% 13 Achievement% 13 Wizard Run 0 Options --------- Layout 0 ASCII 0 Keyboard 0 Movement Mouse Keybinds 0 Fullscreen 1 Font 18/SmallcapsGlow Map View 38x25 Zoom Use 96% Tactical HUD 0 Map Filters NONE Filters NONE Steam 0 RUN: 1bd1bde2-c83c-4d6b-8745-5fb6bac31be0